[Event "23rd OIBM 2019"]
[Site "Gmund am Tegernsee"]
[Date "2019.10.27"]
[Round "2.7"]
[White "Koelle, Tobias"]
[Black "Peralta, Fernando"]
[Result "0-1"]
[ECO "E06"]
[WhiteElo "2281"]
[BlackElo "2569"]
[Annotator "ChessBase"]
[PlyCount "84"]
[EventDate "2019.10.17"]
[EventType "swiss"]
[EventCountry "GER"]
[SourceTitle "playchess.com"]
[Source "ChessBase"]
[SourceQuality "1"]
[TimeControl "40/5400+30:1800+30"]

1. d4 {[%emt 0:00:00]} Nf6 {[%emt 0:05:37]} 2. c4 {[%emt 0:00:00]} e6 {[%emt 0:00:07]} 3. g3 {[%emt 0:00:00]} d5 {[%emt 0:01:37]} 4. Nf3 {[%emt 0:00:00]} Be7 {[%emt 0:01:23]} 5. Bg2 {[%emt 0:00:09]} O-O {[%emt 0:00:05]} 6. O-O {[%emt 0:00:18]} c6 {[%emt 0:00:04]} 7. Qc2 {[%emt 0:00:49]} b6 {[%emt 0:00:31]} 8. Rd1 {[%emt 0:02:48]} Nbd7 {[%emt 0:04:41]} 9. Bf4 {[%emt 0:03:08]} Ba6 {[%emt 0:00:53]} 10. cxd5 {[%emt 0:10:57]} Nxd5 {[%emt 0:01:42]} 11. Nc3 {[%emt 0:17:38]} Rc8 {[%emt 0:02:48]} 12. Rac1 {[%emt 0:10:07]} Nxf4 {[%emt 0:06:28]} 13. gxf4 {[%emt 0:01:08]} Bb7 {[%emt 0:00:42]} 14. Ne5 {[%emt 0:03:00]} Nb8 {[%emt 0:30:10]} 15. f5 {[%emt 0:07:31]} exf5 {[%emt 0:02:46]} 16. Qxf5 {[%emt 0:00:22]} g6 {[%emt 0:01:46]} 17. Qh3 {[%emt 0:02:00]} Rc7 {[%emt 0:01:17]} 18. Rd2 {[%emt 0:07:38]} Bf6 {[%emt 0:05:32]} 19. Rcd1 {[%emt 0:01:24]} Bg7 {[%emt 0:01:57]} 20. Qg3 {[%emt 0:06:03]} Nd7 {[%emt 0:03:43]} 21. Ne4 {[%emt 0:05:13]} Nf6 {[%emt 0:01:15]} 22. Nxf6+ {[%emt 0:02:44]} Bxf6 {[%emt 0:00:19]} 23. Qb3 {[%emt 0:04:10]} Qc8 {[%emt 0:04:21]} 24. f4 {[%emt 0:04:43]} Bg7 {[%emt 0:03:07]} 25. e4 {[%emt 0:00:44]} Re8 {[%emt 0:05:31]} 26. Nc4 {[%emt 0:02:11]} Bf8 {[%emt 0:07:46]} 27. e5 {[%emt 0:00:24]} Qd8 {[%emt 0:01:35]} 28. Qg3 {[%emt 0:01:52]} Bb4 {[%emt 0:02:15]} 29. Rd3 {[%emt 0:00:36]} Ba6 {[%emt 0:01:32]} 30. b3 {[%emt 0:00:06]} Kh8 {[%emt 0:00:24]} 31. Be4 {[%emt 0:02:08]} Qe7 {[%emt 0:00:48]} 32. Qg2 {[%emt 0:00:36]} Qe6 {[%emt 0:01:19]} 33. Rc1 {[%emt 0:04:05]} Rd8 {[%emt 0:00:46]} 34. Qf2 {[%emt 0:01:14]} f5 {[%emt 0:00:58]} 35. Bg2 {[%emt 0:00:45]} Rcd7 {[%emt 0:00:21]} 36. Rcd1 {[%emt 0:00:15]} Bxc4 {[%emt 0:00:43]} 37. bxc4 {[%emt 0:00:01]} Qxc4 {[%emt 0:00:12]} 38. Kh1 {[%emt 0:00:31]} Bc5 {[%emt 0:01:19]} 39. e6 {[%emt 0:00:41]} Qxe6 {[%emt 0:00:29]} 40. Bf3 {[%emt 0:01:07]} Qf6 {[%emt 0:00:31]} 41. Kg2 {[%emt 0:02:52]} Bxd4 {[%emt 0:03:21]} 42. Qc2 {[%emt 0:00:25]} c5 {[%emt 0:00:11]} 0-1

[Event "23rd OIBM 2019"]
[Site "Gmund am Tegernsee"]
[Date "2019.10.27"]
[Round "2.8"]
[White "Idani, Pouya"]
[Black "Dobrikov, Marco"]
[Result "1-0"]
[ECO "B53"]
[WhiteElo "2568"]
[BlackElo "2291"]
[Annotator "ChessBase"]
[PlyCount "87"]
[EventDate "2019.10.17"]
[EventType "swiss"]
[EventCountry "GER"]
[SourceTitle "playchess.com"]
[Source "ChessBase"]
[SourceQuality "1"]
[TimeControl "40/5400+30:1800+30"]

1. e4 {[%emt 0:04:14]} c5 {[%emt 0:00:00]} 2. Nf3 {[%emt 0:00:04]} d6 {[%emt 0:00:00]} 3. d4 {[%emt 0:00:05]} cxd4 {[%emt 0:00:00]} 4. Qxd4 {[%emt 0:00:06]} e5 {[%emt 0:13:56]} 5. Bb5+ {[%emt 0:01:58]} Nd7 {[%emt 0:00:27]} 6. Qe3 {[%emt 0:03:55]} Ngf6 {[%emt 0:01:01]} 7. O-O {[%emt 0:00:18]} a6 {[%emt 0:00:49]} 8. Be2 {[%emt 0:00:12]} Be7 {[%emt 0:01:21]} 9. c4 {[%emt 0:00:15]} O-O {[%emt 0:00:28]} 10. Nc3 {[%emt 0:00:05]} b6 {[%emt 0:06:13]} 11. Rd1 {[%emt 0:05:01]} Bb7 {[%emt 0:03:47]} 12. b3 {[%emt 0:01:50]} Nc5 {[%emt 0:01:38]} 13. Bd3 {[%emt 0:04:53]} Qc7 {[%emt 0:03:48]} 14. Bb2 {[%emt 0:02:37]} Rac8 {[%emt 0:02:37]} 15. Bc2 {[%emt 0:04:43]} Ne6 {[%emt 0:02:23]} 16. a4 {[%emt 0:03:14]} Bc6 {[%emt 0:11:02]} 17. Rd2 {[%emt 0:06:41]} a5 {[%emt 0:01:02]} 18. Rad1 {[%emt 0:04:03]} Nc5 {[%emt 0:01:34]} 19. Ba3 {[%emt 0:03:36]} Qb7 {[%emt 0:02:31]} 20. Re2 {[%emt 0:02:46]} Ng4 {[%emt 0:07:06]} 21. Qd2 {[%emt 0:01:03]} Nf6 {[%emt 0:03:40]} 22. Qe1 {[%emt 0:01:23]} Bd7 {[%emt 0:02:05]} 23. h3 {[%emt 0:02:32]} Bc6 {[%emt 0:00:48]} 24. Bc1 {[%emt 0:07:17]} h6 {[%emt 0:01:04]} 25. Nh4 {[%emt 0:04:08]} Rfd8 {[%emt 0:04:25]} 26. Nf5 {[%emt 0:00:37]} Bf8 {[%emt 0:00:01]} 27. f3 {[%emt 0:02:24]} Kh7 {[%emt 0:07:10]} 28. Nd5 {[%emt 0:04:23]} Bxd5 {[%emt 0:00:11]} 29. exd5 {[%emt 0:00:07]} g6 {[%emt 0:00:06]} 30. Ng3 {[%emt 0:07:55]} Re8 {[%emt 0:02:30]} 31. h4 {[%emt 0:01:24]} Bg7 {[%emt 0:01:04]} 32. h5 {[%emt 0:01:37]} Qd7 {[%emt 0:01:27]} 33. Ba3 {[%emt 0:03:55]} e4 {[%emt 0:05:05]} 34. hxg6+ {[%emt 0:00:36]} fxg6 {[%emt 0:00:02]} 35. Bxc5 {[%emt 0:02:14]} exf3 {[%emt 0:01:17]} 36. Rxe8 {[%emt 0:02:27]} Rxe8 {[%emt 0:00:01]} 37. Be3 {[%emt 0:00:12]} f2+ {[%emt 0:01:46]} 38. Qxf2 {[%emt 0:00:16]} Ng4 {[%emt 0:00:12]} 39. Bxg6+ {[%emt 0:00:59]} Kxg6 {[%emt 0:00:02]} 40. Qc2+ {[%emt 0:00:11]} Kf7 {[%emt 0:00:03]} 41. Bxb6 {[%emt 0:32:40]} Kg8 {[%emt 0:30:06]} 42. Qf5 {[%emt 0:05:14]} Qxf5 {[%emt 0:02:10]} 43. Nxf5 {[%emt 0:00:12]} Rb8 {[%emt 0:00:03]} 44. Bd4 {[%emt 0:01:30]} 1-0

[Event "23rd OIBM 2019"]
[Site "Gmund am Tegernsee"]
[Date "2019.10.27"]
[Round "2.9"]
[White "de Francesco, Klaus"]
[Black "Bernadskiy, Vitaliy"]
[Result "0-1"]
[ECO "A81"]
[WhiteElo "2276"]
[BlackElo "2554"]
[Annotator "ChessBase"]
[PlyCount "64"]
[EventDate "2019.10.17"]
[EventType "swiss"]
[EventCountry "GER"]
[SourceTitle "playchess.com"]
[Source "ChessBase"]
[SourceQuality "1"]
[TimeControl "40/5400+30:1800+30"]

1. d4 {[%emt 0:00:00]} f5 {[%emt 0:00:00]} 2. g3 {[%emt 0:01:11]} Nf6 {[%emt 0:00:00]} 3. Bg2 {[%emt 0:00:12]} g6 {[%emt 0:00:08]} 4. Nf3 {[%emt 0:00:24]} Bg7 {[%emt 0:00:10]} 5. O-O {[%emt 0:00:19]} O-O {[%emt 0:00:04]} 6. c4 {[%emt 0:00:15]} b6 {[%emt 0:00:50]} 7. Nc3 {[%emt 0:01:13]} Bb7 {[%emt 0:00:04]} 8. d5 {[%emt 0:02:27]} Na6 {[%emt 0:00:28]} 9. Nd4 {[%emt 0:01:51]} Nc5 {[%emt 0:00:29]} 10. b4 {[%emt 0:07:41]} Nce4 {[%emt 0:00:10]} 11. Nxe4 {[%emt 0:01:33]} Nxe4 {[%emt 0:00:50]} 12. Be3 {[%emt 0:00:58]} e5 {[%emt 0:04:53]} 13. Nb3 {[%emt 0:08:19]} Nf6 {[%emt 0:03:25]} 14. c5 {[%emt 0:06:51]} e4 {[%emt 0:03:20]} 15. d6 {[%emt 0:02:11]} cxd6 {[%emt 0:00:26]} 16. cxb6 {[%emt 0:00:40]} Nd5 {[%emt 0:00:54]} 17. Bd4 {[%emt 0:02:52]} axb6 {[%emt 0:01:48]} 18. f3 {[%emt 0:02:58]} Qe7 {[%emt 0:02:26]} 19. a4 {[%emt 0:07:26]} Ne3 {[%emt 0:07:24]} 20. Bxe3 {[%emt 0:01:32]} exf3 {[%emt 0:00:17]} 21. Bxf3 {[%emt 0:01:44]} Qxe3+ {[%emt 0:00:13]} 22. Kg2 {[%emt 0:00:25]} Bxf3+ {[%emt 0:00:08]} 23. Rxf3 {[%emt 0:00:12]} Qe4 {[%emt 0:00:03]} 24. Rc1 {[%emt 0:04:58]} Rfe8 {[%emt 0:02:26]} 25. Qxd6 {[%emt 0:03:23]} Qxe2+ {[%emt 0:01:17]} 26. Rf2 {[%emt 0:00:05]} Qe4+ {[%emt 0:00:02]} 27. Kg1 {[%emt 0:00:52]} Bh6 {[%emt 0:00:25]} 28. Nd2 {[%emt 0:00:19]} Qe6 {[%emt 0:00:21]} 29. Qxe6+ {[%emt 0:00:40]} dxe6 {[%emt 0:00:04]} 30. Re2 {[%emt 0:00:30]} Rxa4 {[%emt 0:00:15]} 31. Rc6 {[%emt 0:00:23]} Ra2 {[%emt 0:01:53]} 32. Rd6 {[%emt 0:00:13]} Rc8 {[%emt 0:00:09]} 0-1

[Event "23rd OIBM 2019"]
[Site "Gmund am Tegernsee"]
[Date "2019.10.27"]
[Round "2.10"]
[White "Mons, Leon"]
[Black "Markmann, Ulrich"]
[Result "1-0"]
[ECO "C41"]
[WhiteElo "2552"]
[BlackElo "2279"]
[Annotator "ChessBase"]
[PlyCount "63"]
[EventDate "2019.10.17"]
[EventType "swiss"]
[EventCountry "GER"]
[SourceTitle "playchess.com"]
[Source "ChessBase"]
[SourceQuality "1"]
[TimeControl "40/5400+30:1800+30"]

1. e4 {[%emt 0:03:12]} d6 {[%emt 0:00:00]} 2. d4 {[%emt 0:00:07]} Nf6 {[%emt 0:00:00]} 3. Nc3 {[%emt 0:00:28]} e5 {[%emt 0:00:02]} 4. Nf3 {[%emt 0:00:30]} Nbd7 {[%emt 0:00:11]} 5. Bc4 {[%emt 0:00:38]} Be7 {[%emt 0:00:13]} 6. a4 {[%emt 0:00:48]} O-O {[%emt 0:02:03]} 7. O-O {[%emt 0:01:20]} c6 {[%emt 0:01:21]} 8. a5 {[%emt 0:07:08]} Nxe4 {[%emt 0:21:08]} 9. Nxe4 {[%emt 0:00:37]} d5 {[%emt 0:00:05]} 10. Re1 {[%emt 0:18:07]} exd4 {[%emt 0:15:04]} 11. Bxd5 {[%emt 0:11:32]} cxd5 {[%emt 0:00:09]} 12. Ng3 {[%emt 0:00:09]} Nb8 {[%emt 0:18:55]} 13. Nxd4 {[%emt 0:05:41]} Nc6 {[%emt 0:00:43]} 14. Nh5 {[%emt 0:10:36]} g6 {[%emt 0:17:49]} 15. Nf4 {[%emt 0:12:31]} Bf6 {[%emt 0:00:15]} 16. Be3 {[%emt 0:06:55]} Nxa5 {[%emt 0:02:44]} 17. b3 {[%emt 0:01:19]} b6 {[%emt 0:04:47]} 18. Qf3 {[%emt 0:04:58]} Bb7 {[%emt 0:00:02]} 19. Rad1 {[%emt 0:00:06]} Rc8 {[%emt 0:00:09]} 20. Qg4 {[%emt 0:02:25]} Bg7 {[%emt 0:00:34]} 21. c4 {[%emt 0:01:00]} Bxd4 {[%emt 0:05:53]} 22. Bxd4 {[%emt 0:01:01]} Nxb3 {[%emt 0:00:02]} 23. Bb2 {[%emt 0:02:05]} Rxc4 {[%emt 0:00:02]} 24. Qg3 {[%emt 0:00:45]} Nc5 {[%emt 0:05:34]} 25. Bd4 {[%emt 0:04:35]} Ne4 {[%emt 0:01:20]} 26. Qe3 {[%emt 0:01:18]} Qg5 {[%emt 0:00:51]} 27. f3 {[%emt 0:01:03]} Nd6 {[%emt 0:00:22]} 28. h4 {[%emt 0:00:42]} Qxh4 {[%emt 0:00:51]} 29. Qe5 {[%emt 0:01:09]} Rxd4 {[%emt 0:00:06]} 30. Rxd4 {[%emt 0:00:44]} Ne4 {[%emt 0:00:30]} 31. Nd3 {[%emt 0:00:48]} Ba6 {[%emt 0:01:32]} 32. fxe4 {[%emt 0:00:32]} 1-0

[Event "23rd OIBM 2019"]
[Site "Gmund am Tegernsee"]
[Date "2019.10.27"]
[Round "2.11"]
[White "Pieper, Thomas"]
[Black "Shevchenko, Kirill"]
[Result "0-1"]
[ECO "B94"]
[WhiteElo "2272"]
[BlackElo "2542"]
[Annotator "ChessBase"]
[PlyCount "78"]
[EventDate "2019.10.17"]
[EventType "swiss"]
[EventCountry "GER"]
[SourceTitle "playchess.com"]
[Source "ChessBase"]
[SourceQuality "1"]
[TimeControl "40/5400+30:1800+30"]

1. e4 {[%emt 0:00:00]} c5 {[%emt 0:00:00]} 2. Nf3 {[%emt 0:00:00]} d6 {[%emt 0:00:00]} 3. d4 {[%emt 0:00:02]} cxd4 {[%emt 0:00:00]} 4. Nxd4 {[%emt 0:00:05]} Nf6 {[%emt 0:00:00]} 5. Nc3 {[%emt 0:00:05]} a6 {[%emt 0:00:00]} 6. Bg5 {[%emt 0:00:35]} Nbd7 {[%emt 0:00:11]} 7. Qe2 {[%emt 0:00:36]} e6 {[%emt 0:01:27]} 8. f4 {[%emt 0:04:36]} Qc7 {[%emt 0:00:54]} 9. O-O-O {[%emt 0:01:07]} b5 {[%emt 0:00:13]} 10. a3 {[%emt 0:01:29]} Bb7 {[%emt 0:04:16]} 11. g4 {[%emt 0:04:55]} Be7 {[%emt 0:04:20]} 12. Rg1 {[%emt 0:08:18]} h6 {[%emt 0:14:23]} 13. Bh4 {[%emt 0:12:21]} Rb8 {[%emt 0:17:18]} 14. Be1 {[%emt 0:18:31]} Nc5 {[%emt 0:08:40]} 15. Bg2 {[%emt 0:06:30]} g5 {[%emt 0:10:03]} 16. fxg5 {[%emt 0:10:43]} hxg5 {[%emt 0:00:26]} 17. Bg3 {[%emt 0:00:14]} Ncd7 {[%emt 0:08:12]} 18. Rgf1 {[%emt 0:18:04]} Ne5 {[%emt 0:02:58]} 19. h3 {[%emt 0:02:57]} Nfd7 {[%emt 0:05:43]} 20. Qf2 {[%emt 0:02:52]} Rh7 {[%emt 0:03:01]} 21. Nd5 {[%emt 0:04:29]} exd5 {[%emt 0:01:58]} 22. exd5 {[%emt 0:00:12]} Qc4 {[%emt 0:10:07]} 23. Qf5 {[%emt 0:02:02]} Rg7 {[%emt 0:03:19]} 24. Nc6 {[%emt 0:00:04]} Rc8 {[%emt 0:02:59]} 25. Kb1 {[%emt 0:00:49]} Nxc6 {[%emt 0:00:27]} 26. dxc6 {[%emt 0:00:04]} Bxc6 {[%emt 0:00:05]} 27. Bxc6 {[%emt 0:01:10]} Rxc6 {[%emt 0:01:23]} 28. Rf2 {[%emt 0:00:34]} Qe6 {[%emt 0:00:21]} 29. Qf3 {[%emt 0:00:17]} Ne5 {[%emt 0:00:10]} 30. Qe4 {[%emt 0:00:28]} Rc4 {[%emt 0:00:40]} 31. Qa8+ {[%emt 0:00:17]} Qc8 {[%emt 0:00:04]} 32. Qd5 {[%emt 0:00:23]} Qe6 {[%emt 0:00:43]} 33. Qa8+ {[%emt 0:00:05]} Qc8 {[%emt 0:00:01]} 34. Qd5 {[%emt 0:00:13]} Rc5 {[%emt 0:01:30]} 35. Qe4 {[%emt 0:00:40]} Qc6 {[%emt 0:00:21]} 36. Qe2 {[%emt 0:01:30]} Rd5 {[%emt 0:00:22]} 37. Rdf1 {[%emt 0:00:35]} Qc4 {[%emt 0:00:37]} 38. Qe3 {[%emt 0:00:25]} Qd4 {[%emt 0:00:28]} 39. Qe2 {[%emt 0:00:17]} Nc4 {[%emt 0:01:06]} 0-1

[Event "23rd OIBM 2019"]
[Site "Gmund am Tegernsee"]
[Date "2019.10.27"]
[Round "2.12"]
[White "Nasuta, Grzegorz"]
[Black "Koellner, Ruben Gideon"]
[Result "1-0"]
[ECO "C41"]
[WhiteElo "2534"]
[BlackElo "2265"]
[Annotator "ChessBase"]
[PlyCount "49"]
[EventDate "2019.10.17"]
[EventType "swiss"]
[EventCountry "GER"]
[SourceTitle "playchess.com"]
[Source "ChessBase"]
[SourceQuality "1"]
[TimeControl "40/5400+30:1800+30"]

1. e4 {[%emt 0:00:00]} d6 {[%emt 0:00:00]} 2. d4 {[%emt 0:00:00]} Nf6 {[%emt 0:00:00]} 3. Nc3 {[%emt 0:00:00]} e5 {[%emt 0:00:00]} 4. Nf3 {[%emt 0:00:25]} Nbd7 {[%emt 0:00:00]} 5. Bc4 {[%emt 0:00:31]} Be7 {[%emt 0:00:00]} 6. a4 {[%emt 0:00:05]} O-O {[%emt 0:00:00]} 7. O-O {[%emt 0:00:20]} exd4 {[%emt 0:00:12]} 8. Qxd4 {[%emt 0:03:17]} Nb6 {[%emt 0:02:42]} 9. Ba2 {[%emt 0:18:03]} a5 {[%emt 0:01:24]} 10. h3 {[%emt 0:05:37]} Nfd7 {[%emt 0:04:55]} 11. Be3 {[%emt 0:08:03]} Nc5 {[%emt 0:07:09]} 12. Rad1 {[%emt 0:09:06]} Bd7 {[%emt 0:06:38]} 13. e5 {[%emt 0:05:15]} Ncxa4 {[%emt 0:06:54]} 14. exd6 {[%emt 0:24:31]} cxd6 {[%emt 0:08:14]} 15. Ne4 {[%emt 0:08:32]} d5 {[%emt 0:03:36]} 16. Bxd5 {[%emt 0:00:06]} Nxd5 {[%emt 0:00:21]} 17. Qxd5 {[%emt 0:00:07]} Bc6 {[%emt 0:00:51]} 18. Qe5 {[%emt 0:01:49]} Qe8 {[%emt 0:01:05]} 19. Nd4 {[%emt 0:11:06]} Nxb2 {[%emt 0:07:17]} 20. Nf5 {[%emt 0:00:28]} f6 {[%emt 0:01:06]} 21. Nxe7+ {[%emt 0:01:45]} Kh8 {[%emt 0:00:32]} 22. Qxb2 {[%emt 0:00:05]} Bxe4 {[%emt 0:00:05]} 23. Bc5 {[%emt 0:01:18]} Rf7 {[%emt 0:00:24]} 24. f3 {[%emt 0:00:32]} b6 {[%emt 0:01:41]} 25. Bd6 {[%emt 0:00:35]} 1-0

[Event "23rd OIBM 2019"]
[Site "Gmund am Tegernsee"]
[Date "2019.10.27"]
[Round "2.14"]
[White "Marin, Mihail"]
[Black "Kueppers, Timo"]
[Result "0-1"]
[ECO "A00"]
[WhiteElo "2524"]
[BlackElo "2250"]
[Annotator "ChessBase"]
[PlyCount "78"]
[EventDate "2019.10.17"]
[EventType "swiss"]
[EventCountry "GER"]
[SourceTitle "playchess.com"]
[Source "ChessBase"]
[SourceQuality "1"]
[TimeControl "40/5400+30:1800+30"]

1. g3 {[%emt 0:00:00]} c5 {[%emt 0:02:52]} 2. Bg2 {[%emt 0:00:00]} Nf6 {[%emt 0:00:10]} 3. f4 {[%emt 0:00:11]} d5 {[%emt 0:02:11]} 4. Nf3 {[%emt 0:00:06]} g6 {[%emt 0:00:10]} 5. O-O {[%emt 0:00:06]} Bg7 {[%emt 0:00:03]} 6. d3 {[%emt 0:00:04]} O-O {[%emt 0:00:12]} 7. Qe1 {[%emt 0:00:14]} d4 {[%emt 0:03:08]} 8. Na3 {[%emt 0:08:36]} Nc6 {[%emt 0:06:13]} 9. c4 {[%emt 0:00:13]} e5 {[%emt 0:15:32]} 10. Nxe5 {[%emt 0:23:31]} Nxe5 {[%emt 0:00:11]} 11. fxe5 {[%emt 0:00:05]} Ng4 {[%emt 0:00:27]} 12. Nc2 {[%emt 0:00:13]} a5 {[%emt 0:06:25]} 13. e6 {[%emt 0:05:27]} fxe6 {[%emt 0:15:10]} 14. Rxf8+ {[%emt 0:00:18]} Qxf8 {[%emt 0:00:24]} 15. h3 {[%emt 0:06:55]} Nf6 {[%emt 0:01:27]} 16. Qf2 {[%emt 0:02:20]} e5 {[%emt 0:02:16]} 17. Bg5 {[%emt 0:03:19]} Ra6 {[%emt 0:01:16]} 18. Rf1 {[%emt 0:13:46]} h6 {[%emt 0:05:10]} 19. Bd2 {[%emt 0:03:09]} Qe7 {[%emt 0:08:00]} 20. e3 {[%emt 0:03:03]} e4 {[%emt 0:12:10]} 21. exd4 {[%emt 0:02:44]} exd3 {[%emt 0:00:04]} 22. Ne3 {[%emt 0:03:30]} cxd4 {[%emt 0:00:15]} 23. Nd5 {[%emt 0:00:07]} Nxd5 {[%emt 0:00:03]} 24. Bxd5+ {[%emt 0:00:29]} Be6 {[%emt 0:03:00]} 25. Re1 {[%emt 0:01:09]} Qd7 {[%emt 0:02:15]} 26. Rxe6 {[%emt 0:05:20]} Rxe6 {[%emt 0:00:04]} 27. Qf3 {[%emt 0:00:29]} Kh7 {[%emt 0:01:23]} 28. Bxe6 {[%emt 0:00:10]} Qxe6 {[%emt 0:00:03]} 29. Qxd3 {[%emt 0:00:07]} Qxh3 {[%emt 0:00:43]} 30. Bxa5 {[%emt 0:00:58]} h5 {[%emt 0:00:32]} 31. Be1 {[%emt 0:05:43]} h4 {[%emt 0:02:46]} 32. Bf2 {[%emt 0:00:27]} Be5 {[%emt 0:01:24]} 33. Qf3 {[%emt 0:02:52]} hxg3 {[%emt 0:02:21]} 34. Qxb7+ {[%emt 0:01:57]} Kh6 {[%emt 0:00:09]} 35. Be1 {[%emt 0:00:05]} Bf4 {[%emt 0:01:18]} 36. Qg2 {[%emt 0:00:14]} Be3+ {[%emt 0:01:40]} 37. Kf1 {[%emt 0:00:07]} Qf5+ {[%emt 0:00:15]} 38. Ke2 {[%emt 0:00:09]} Qc2+ {[%emt 0:00:10]} 39. Kf3 {[%emt 0:00:16]} Qd1+ {[%emt 0:00:10]} 0-1

[Event "23rd OIBM 2019"]
[Site "Gmund am Tegernsee"]
[Date "2019.10.27"]
[Round "2.16"]
[White "Gukesh D"]
[Black "Ciolek, Andreas"]
[Result "1-0"]
[ECO "B06"]
[WhiteElo "2520"]
[BlackElo "2238"]
[Annotator "ChessBase"]
[PlyCount "55"]
[EventDate "2019.10.17"]
[EventType "swiss"]
[EventCountry "GER"]
[SourceTitle "playchess.com"]
[Source "ChessBase"]
[SourceQuality "1"]
[TimeControl "40/5400+30:1800+30"]

1. e4 {[%emt 0:00:05]} g6 {[%emt 0:00:00]} 2. d4 {[%emt 0:00:56]} Bg7 {[%emt 0:00:00]} 3. Nc3 {[%emt 0:00:56]} d6 {[%emt 0:00:00]} 4. Be3 {[%emt 0:00:39]} a6 {[%emt 0:00:00]} 5. Qd2 {[%emt 0:02:13]} b5 {[%emt 0:02:15]} 6. h4 {[%emt 0:01:38]} Nf6 {[%emt 0:01:17]} 7. f3 {[%emt 0:01:33]} h5 {[%emt 0:00:15]} 8. O-O-O {[%emt 0:02:05]} c6 {[%emt 0:02:00]} 9. Kb1 {[%emt 0:04:39]} Qa5 {[%emt 0:18:16]} 10. a3 {[%emt 0:31:11]} Nbd7 {[%emt 0:16:41]} 11. Nh3 {[%emt 0:07:03]} c5 {[%emt 0:09:12]} 12. dxc5 {[%emt 0:10:00]} Nxc5 {[%emt 0:04:40]} 13. e5 {[%emt 0:05:47]} Nfd7 {[%emt 0:02:56]} 14. Nd5 {[%emt 0:03:48]} Qxd2 {[%emt 0:06:25]} 15. Rxd2 {[%emt 0:00:07]} Rb8 {[%emt 0:04:24]} 16. exd6 {[%emt 0:02:18]} exd6 {[%emt 0:00:39]} 17. Nb4 {[%emt 0:04:32]} O-O {[%emt 0:08:49]} 18. Nc6 {[%emt 0:01:18]} Rb7 {[%emt 0:05:45]} 19. Ne7+ {[%emt 0:04:52]} Kh8 {[%emt 0:00:06]} 20. Ng5 {[%emt 0:02:13]} Nb6 {[%emt 0:06:58]} 21. Rxd6 {[%emt 0:05:02]} Rxe7 {[%emt 0:05:49]} 22. Bxc5 {[%emt 0:00:08]} Re1+ {[%emt 0:01:11]} 23. Ka2 {[%emt 0:00:04]} Na4 {[%emt 0:00:40]} 24. Bb4 {[%emt 0:02:42]} Rc1 {[%emt 0:00:18]} 25. Rd2 {[%emt 0:02:31]} Re8 {[%emt 0:01:23]} 26. Bxb5 {[%emt 0:00:55]} Rxh1 {[%emt 0:01:43]} 27. Bxe8 {[%emt 0:00:35]} Nxb2 {[%emt 0:01:04]} 28. Rd8 {[%emt 0:00:48]} 1-0